bitfinex/quotes_BTCUSD_20240727
["timestamp","ask_amount","ask_price","bid_price","bid_amount"]
[1722050648110,10.36918911,67981.0,67980.0,0.29415697]
[1722050648338,10.56918911,67981.0,67980.0,0.29415697]
[1722050648554,11.16338811,67981.0,67980.0,0.29415697]
[1722050648762,11.50458487,67981.0,67980.0,0.29415697]
[1722050649099,11.25458487,67981.0,67980.0,0.29415697]
[1722050650227,11.50458487,67981.0,67980.0,0.29415697]
[1722050650619,11.38837838,67981.0,67980.0,0.29415697]
[1722050650802,11.5048997,67981.0,67980.0,0.29415697]
[1722050651365,11.52798718,67981.0,67980.0,0.29415697]
[1722050651565,11.27798718,67981.0,67980.0,0.29415697]
[1722050652137,11.52798718,67981.0,67980.0,0.29415697]
[1722050654720,11.3618138,67981.0,67980.0,0.29415697]
[1722050656008,11.6560128,67981.0,67980.0,0.29415697]
[1722050656551,11.79911813,67981.0,67980.0,0.29415697]
[1722050657370,11.79898664,67981.0,67980.0,0.29415697]
[1722050658350,11.79898664,67981.0,67980.0,0.29515697]
[1722050659767,11.82207451,67981.0,67980.0,0.29515697]
[1722050659969,11.79898664,67981.0,67980.0,0.29515697]
[1722050660475,11.57207212,67981.0,67980.0,0.29515697]
[1722050660879,11.5721968,67981.0,67980.0,0.29515697]
[1722050662172,11.2014978,67981.0,67980.0,0.29515697]
[1722050662376,11.03520499,67981.0,67980.0,0.29515697]
[1722050662522,10.97280499,67981.0,67980.0,0.29515697]
[1722050663430,10.99680048,67981.0,67980.0,0.29515697]
[1722050664241,10.99680271,67981.0,67980.0,0.29515697]
[1722050664441,10.87937767,67981.0,67980.0,0.29515697]
[1722050664644,10.97378995,67981.0,67980.0,0.29515697]
[1722050665204,10.97379002,67981.0,67980.0,0.29515697]
[1722050667835,10.97356632,67981.0,67980.0,0.29515697]
[1722050667986,10.99665347,67981.0,67980.0,0.29515697]
[1722050668190,10.97356632,67981.0,67980.0,0.29515697]
[1722050671077,10.85629048,67981.0,67980.0,0.29515697]
[1722050671275,10.97334818,67981.0,67980.0,0.29515697]
[1722050671588,10.99643533,67981.0,67980.0,0.29515697]
[1722050672642,10.97334818,67981.0,67980.0,0.29515697]
[1722050674722,10.97342824,67981.0,67980.0,0.29515697]
[1722050675000,10.97343054,67981.0,67980.0,0.29515697]
[1722050675997,10.99651763,67981.0,67980.0,0.29515697]
[1722050678172,10.99641231,67981.0,67980.0,0.29608097]
[1722050678961,10.97332522,67981.0,67980.0,0.29608097]
[1722050680183,11.05502522,67981.0,67980.0,0.29608097]
[1722050680581,11.37042522,67981.0,67980.0,0.29608097]
[1722050681842,11.6925181,67981.0,67980.0,0.29608097]
[1722050682058,11.9867171,67981.0,67980.0,0.2690877]
[1722050682291,12.02093634,67981.0,67980.0,0.2690877]
[1722050682500,12.13697633,67981.0,67980.0,0.2690877]
[1722050682696,12.11388904,67981.0,67980.0,0.2690877]
[1722050683003,11.96362947,67981.0,67980.0,0.2690877]
[1722050683792,11.96362947,67981.0,67980.0,0.09917438]
[1722050683793,12.34635847,67981.0,67980.0,0.09917438]
[1722050684185,12.36174068,67981.0,67980.0,0.001924]
[1722050684369,12.51200025,67981.0,67980.0,0.001924]
[1722050684817,12.39596026,67981.0,67980.0,0.001924]
[1722050685018,12.51143125,67981.0,67980.0,0.000924]
[1722050685223,12.51143125,67981.0,67980.0,0.001924]
[1722050685729,12.51143125,67981.0,67957.0,0.0765]
[1722050685730,0.397149,67958.0,67957.0,0.0765]
[1722050685896,1.1028239,67958.0,67957.0,0.0765]
[1722050686049,1.080078,67956.0,67955.0,0.000924]
[1722050686258,1.1206549,67956.0,67955.0,0.000924]
[1722050686475,1.4379629,67956.0,67955.0,0.000924]
[1722050687289,1.4379629,67956.0,67955.0,0.008924]
[1722050687507,1.5144629,67956.0,67955.0,0.003924]
[1722050688249,1.51497168,67956.0,67955.0,0.003924]
[1722050688459,1.51597168,67956.0,67955.0,0.009924]
[1722050689799,1.66307168,67956.0,67955.0,0.009924]
[1722050689945,1.58137168,67956.0,67955.0,0.009924]
[1722050690155,1.53906523,67956.0,67955.0,0.009924]
[1722050691287,1.66447648,67956.0,67955.0,0.009924]
[1722050691460,1.51597168,67956.0,67955.0,0.009924]
[1722050691643,1.66455457,67956.0,67955.0,0.009924]
[1722050693183,1.51604981,67956.0,67955.0,0.009924]
[1722050694226,1.53914418,67956.0,67955.0,0.009924]
[1722050694635,1.53932295,67956.0,67955.0,0.009924]
[1722050695042,1.53932294,67956.0,67955.0,0.009924]
[1722050695416,1.51622857,67956.0,67955.0,0.009924]
[1722050696193,1.57522557,67956.0,67955.0,0.009924]
[1722050698618,1.57537587,67956.0,67955.0,0.009924]
[1722050698946,1.59847029,67956.0,67955.0,0.154724]
[1722050699108,1.22766229,67956.0,67955.0,0.154724]
[1722050699411,1.30416229,67956.0,67955.0,0.154724]
[1722050699574,1.25416229,67956.0,67955.0,0.154724]
[1722050699805,1.18649151,67956.0,67955.0,0.154724]
[1722050700415,1.16339709,67956.0,67955.0,0.154724]
[1722050700889,1.29528581,67956.0,67955.0,0.154724]
[1722050701061,1.23989709,67956.0,67955.0,0.154724]
[1722050703729,1.26299087,67956.0,67955.0,0.154724]
[1722050704468,1.19840422,67956.0,67955.0,0.154724]
[1722050704598,1.24006621,67956.0,67955.0,0.154724]
[1722050705676,1.37191629,67956.0,67955.0,0.154724]
[1722050705877,1.24006621,67956.0,67955.0,0.154724]
[1722050706204,1.37191629,67956.0,67955.0,0.154724]
[1722050706816,1.24006621,67956.0,67955.0,0.154724]
[1722050707932,1.23983359,67956.0,67955.0,0.154724]
[1722050708333,1.37167685,67956.0,67955.0,0.154724]
[1722050708703,1.23983359,67956.0,67955.0,0.154724]
[1722050708852,1.26292733,67956.0,67955.0,0.154724]
[1722050709205,1.23983359,67956.0,67955.0,0.154724]
[1722050709325,1.37168154,67956.0,67955.0,0.154724]
[1722050709520,1.23983828,67956.0,67955.0,0.154724]
[1722050710438,1.37168154,67956.0,67955.0,0.154724]
[1722050710643,1.37168154,67956.0,67955.0,0.155648]
[1722050710902,1.37252154,67956.0,67955.0,0.155648]
[1722050711106,1.24067828,67956.0,67955.0,0.091948]
[1722050712037,1.26377168,67956.0,67955.0,0.091948]
[1722050712481,1.24067828,67956.0,67955.0,0.091948]
[1722050714261,1.31653985,67956.0,67955.0,0.091948]
[1722050714681,1.19924422,67956.0,67955.0,0.091948]
[1722050714864,1.31668824,67956.0,67955.0,0.091948]
[1722050715068,1.24082638,67956.0,67955.0,0.091948]
[1722050715769,1.33978192,67956.0,67955.0,0.091948]
[1722050716195,1.26391978,67956.0,67955.0,0.091948]
[1722050716393,1.33973647,67956.0,67955.0,0.091948]
[1722050716572,1.3397314,67956.0,67955.0,0.091948]
[1722050716972,1.26391978,67956.0,67955.0,0.091948]
[1722050717277,1.18741978,67956.0,67955.0,0.091948]
[1722050717484,1.26391978,67956.0,67955.0,0.091948]
[1722050717983,1.26386621,67956.0,67955.0,0.091948]
[1722050718196,1.26453492,67956.0,67955.0,0.091948]
[1722050719897,1.24144152,67956.0,67955.0,0.091948]
[1722050720697,1.26453153,67956.0,67955.0,0.091948]
[1722050720904,1.26453153,67956.0,67955.0,0.153748]
[1722050720905,0.25814557,67956.0,67955.0,0.153748]
[1722050721049,0.06712731,67956.0,67955.0,0.153748]
[1722050721250,0.06712731,67956.0,67955.0,0.300904]
[1722050721458,0.06721958,67956.0,67955.0,0.300904]
[1722050721879,0.06721958,67956.0,67955.0,0.153748]
[1722050723368,0.06721958,67956.0,67955.0,0.300904]
[1722050723585,0.06737883,67956.0,67955.0,0.300904]
[1722050723787,0.06737883,67956.0,67955.0,0.595216]
[1722050724228,0.06737883,67956.0,67955.0,0.591292]
[1722050724425,0.06837883,67956.0,67955.0,0.604292]
[1722050724801,0.06837883,67956.0,67955.0,0.30998]
[1722050725022,0.06840483,67956.0,67955.0,0.30998]
[1722050725203,0.06740483,67956.0,67955.0,0.30398]
[1722050725557,0.06740483,67956.0,67955.0,0.31198]
[1722050726125,0.06740483,67956.0,67955.0,0.30398]
[1722050726461,0.06740483,67956.0,67955.0,0.31298]
[1722050727021,0.09049709,67956.0,67955.0,0.165824]
[1722050727160,0.09049709,67956.0,67955.0,0.31298]
[1722050727359,0.06740483,67956.0,67955.0,0.31298]
[1722050728225,0.19952372,67956.0,67955.0,0.31298]
[1722050728523,0.19906119,67956.0,67955.0,0.31298]
[1722050729006,0.19906119,67956.0,67955.0,0.607292]
[1722050729447,0.02493001,67956.0,67955.0,0.607292]
[1722050731496,0.02493001,67956.0,67955.0,0.901604]
[1722050731762,0.11206038,67956.0,67955.0,0.901604]
[1722050731926,0.00184,67956.0,67955.0,0.901604]
[1722050732453,0.08999887,67956.0,67955.0,0.901604]
[1722050732683,0.08999876,67956.0,67955.0,0.901604]
[1722050732854,0.00184,67956.0,67955.0,0.901604]
[1722050733031,0.08999869,67956.0,67955.0,0.901604]
[1722050733238,0.08999807,67956.0,67955.0,0.901604]
[1722050734384,0.00184,67956.0,67955.0,0.901604]
[1722050734783,0.02493142,67956.0,67955.0,0.901604]
[1722050735196,0.02493142,67956.0,67955.0,0.607292]
[1722050736149,0.02493142,67956.0,67955.0,0.901604]
[1722050736352,0.02493142,67956.0,67955.0,0.607292]
[1722050736554,0.46639342,67956.0,67955.0,0.022924]
[1722050736760,0.80284051,67956.0,67955.0,0.022924]
[1722050736987,1.29234149,67956.0,67955.0,0.022924]
[1722050737697,0.86584051,67956.0,67955.0,0.022924]
[1722050738243,0.84274909,67956.0,67955.0,0.022924]
[1722050738468,0.84290878,67956.0,67955.0,0.022924]
[1722050738666,0.86590878,67956.0,67955.0,0.022924]
[1722050738920,1.16021678,67956.0,67955.0,0.022924]
[1722050740708,1.16911747,67956.0,67955.0,0.022924]
[1722050741607,1.19221036,67956.0,67955.0,0.022924]
[1722050741808,1.16910254,67956.0,67955.0,0.022924]
[1722050742183,1.10610254,67956.0,67955.0,0.022924]
[1722050742388,0.81179454,67956.0,67955.0,0.022924]
[1722050742592,1.43903946,67956.0,67955.0,0.022924]
[1722050742796,1.66521625,67956.0,67955.0,0.022924]
[1722050743279,1.66421625,67956.0,67955.0,0.009924]
[1722050743676,1.52150912,67956.0,67955.0,0.011924]
[1722050743888,1.52150912,67956.0,67955.0,0.009924]
[1722050744242,1.52150912,67956.0,67955.0,0.011924]
[1722050744655,1.44637933,67956.0,67955.0,0.011924]
[1722050744858,1.44637933,67956.0,67955.0,0.002924]
[1722050745105,1.46734088,67956.0,67955.0,0.002924]
[1722050745278,1.46834088,67956.0,67955.0,0.002924]
[1722050745684,1.46734088,67956.0,67955.0,0.002924]
[1722050746217,1.49484088,67956.0,67955.0,0.002924]
[1722050746416,1.39424728,67956.0,67955.0,0.002924]
[1722050748200,1.24556462,67956.0,67955.0,0.002924]
[1722050749551,1.26865856,67956.0,67955.0,0.002924]
[1722050750035,1.24556462,67956.0,67955.0,0.002924]
[1722050751096,1.24556462,67956.0,67955.0,0.147224]
[1722050751097,1.10396462,67956.0,67955.0,0.147224]
[1722050751292,1.10396462,67956.0,67955.0,0.002924]
[1722050752049,1.10492167,67956.0,67955.0,0.002924]
[1722050752243,1.10748203,67956.0,67955.0,0.002924]
[1722050753289,1.1305762,67956.0,67955.0,0.002924]
[1722050753908,1.1305577,67956.0,67955.0,0.002924]
[1722050754112,1.1305577,67956.0,67955.0,0.084524]
[1722050754460,1.10746353,67956.0,67955.0,0.084524]
[1722050755325,1.14287905,67956.0,67955.0,0.084524]
[1722050755472,1.18178966,67956.0,67955.0,0.084524]
[1722050755673,0.93666853,67956.0,67955.0,0.084524]
[1722050755877,0.78798166,67956.0,67955.0,0.084524]
[1722050757607,0.81107512,67956.0,67955.0,0.084524]
[1722050758401,0.78798166,67956.0,67955.0,0.084524]
[1722050758912,0.45220269,67956.0,67955.0,0.084524]
[1722050759139,0.49370541,67956.0,67955.0,0.084524]
[1722050759332,0.78811816,67956.0,67955.0,0.084524]
[1722050760459,0.93680893,67956.0,67955.0,0.084524]
[1722050760646,1.25411693,67956.0,67955.0,0.002924]
[1722050761228,1.10542616,67956.0,67955.0,0.002924]
[1722050761603,1.2540878,67956.0,67955.0,0.002924]
[1722050762238,0.9597798,67956.0,67955.0,0.002924]
[1722050763023,1.2540878,67956.0,67955.0,0.002924]
[1722050765014,1.25408448,67956.0,67955.0,0.002924]
[1722050765444,1.27667164,67956.0,67955.0,0.002924]
[1722050765641,1.2535775,67956.0,67955.0,0.002924]
[1722050766400,1.25360215,67956.0,67955.0,0.002924]
[1722050768333,1.06381869,67956.0,67955.0,0.002924]
[1722050768560,1.25377531,67956.0,67955.0,0.002924]
[1722050769000,1.27686945,67956.0,67955.0,0.002924]
[1722050769779,1.35337007,67956.0,67955.0,0.002924]
[1722050772025,1.35352376,67956.0,67955.0,0.002924]
[1722050772946,1.27702376,67956.0,67955.0,0.002924]
[1722050773163,1.35352376,67956.0,67955.0,0.002924]
[1722050773501,1.05921576,67956.0,67955.0,0.078424]
[1722050773897,1.35352376,67956.0,67955.0,0.002924]
[1722050775292,1.20486663,67956.0,67955.0,0.002924]
[1722050775464,1.35353008,67956.0,67955.0,0.002924]
[1722050776006,1.35608998,67956.0,67955.0,0.002924]
[1722050777297,1.20740345,67956.0,67955.0,0.002924]
[1722050778949,1.20752537,67956.0,67955.0,0.002924]
[1722050785773,1.16597273,67956.0,67955.0,0.002924]
[1722050785978,1.20732106,67956.0,67955.0,0.002924]
[1722050787834,0.91301306,67956.0,67955.0,0.002924]
[1722050788220,1.20732106,67956.0,67955.0,0.002924]
[1722050788615,1.18422692,67956.0,67955.0,0.002924]
[1722050789299,1.18434941,67956.0,67955.0,0.002924]
[1722050792337,1.20744321,67956.0,67955.0,0.002924]
[1722050792738,1.20748718,67956.0,67955.0,0.002924]
[1722050793829,0.89008538,67956.0,67955.0,0.002924]
[1722050793999,1.18439338,67956.0,67955.0,0.002924]
[1722050794304,0.89011042,67956.0,67955.0,0.002924]
[1722050794661,0.81361042,67956.0,67955.0,0.147624]
[1722050794858,0.79061042,67956.0,67955.0,0.147624]
[1722050795377,0.78805052,67956.0,67955.0,0.147624]
[1722050796313,0.78786855,67956.0,67955.0,0.147624]
[1722050796964,0.81096222,67956.0,67955.0,0.147624]
[1722050797129,0.8109909,67956.0,67955.0,0.147624]
[1722050798717,0.78789723,67956.0,67955.0,0.147624]
[1722050799323,0.81098671,67956.0,67955.0,0.147624]
[1722050799793,0.81129615,67956.0,67955.0,0.147624]
[1722050800112,0.81129615,67956.0,67955.0,0.081424]
[1722050803304,0.76960017,67956.0,67955.0,0.081424]
[1722050803499,0.81140091,67956.0,67955.0,0.081424]
[1722050805596,1.31970891,67956.0,67955.0,0.002924]
[1722050806500,1.17870891,67956.0,67955.0,0.002924]
[1722050806700,1.13690817,67956.0,67955.0,0.002924]
[1722050806912,1.17865513,67956.0,67955.0,0.002924]
[1722050809363,1.12865513,67956.0,67955.0,0.002924]
[1722050810128,1.17865513,67956.0,67955.0,0.002924]
[1722050810341,1.15174889,67956.0,67955.0,0.002924]
[1722050810986,1.20174889,67956.0,67955.0,0.002924]
[1722050811515,1.17865513,67956.0,67955.0,0.002924]
[1722050812471,1.12865513,67956.0,67955.0,0.002924]
[1722050814956,0.83434713,67956.0,67955.0,0.002924]
[1722050815464,2.09048788,67956.0,67955.0,0.002924]
[1722050815950,2.31027583,67956.0,67955.0,0.002924]
[1722050816374,2.09305381,67956.0,67955.0,0.002924]
[1722050817230,2.09414185,67956.0,67955.0,0.002924]
[1722050818865,2.11583724,67956.0,67955.0,0.002924]
[1722050820526,1.99667749,67956.0,67955.0,0.002924]
[1722050820714,2.11613146,67956.0,67955.0,0.002924]
[1722050821810,1.92633146,67956.0,67955.0,0.002924]
[1722050822161,2.00283146,67956.0,67955.0,0.002924]
[1722050823195,1.97973607,67956.0,67955.0,0.002924]
[1722050823401,1.90361368,67956.0,67955.0,0.002924]
[1722050823752,1.98097281,67956.0,67955.0,0.002924]
[1722050824252,1.90361368,67956.0,67955.0,0.002924]
[1722050824795,1.98097246,67956.0,67955.0,0.002924]
[1722050824998,2.12577246,67956.0,67955.0,0.002924]
[1722050825201,2.12560449,67956.0,67955.0,0.002924]
[1722050826246,2.14869973,67956.0,67955.0,0.002924]
[1722050826613,2.12560449,67956.0,67955.0,0.002924]
[1722050826809,2.04821683,67956.0,67955.0,0.002924]
[1722050827011,2.1255499,67956.0,67955.0,0.002924]
[1722050829124,2.1755499,67956.0,67955.0,0.002924]
[1722050829875,2.19864514,67956.0,67955.0,0.002924]
[1722050830340,2.19887467,67956.0,67955.0,0.002924]
[1722050831025,2.07817734,67956.0,67955.0,0.002924]
[1722050831252,2.17569385,67956.0,67955.0,0.002924]
[1722050831957,2.03089385,67956.0,67955.0,0.002924]
[1722050833832,2.03083921,67956.0,67955.0,0.002924]
[1722050834058,2.03080377,67956.0,67955.0,0.002924]
[1722050834516,2.05389877,67956.0,67955.0,0.002924]
[1722050835689,2.03080377,67956.0,67955.0,0.002924]
[1722050837197,1.95289468,67956.0,67955.0,0.002924]
[1722050837403,2.02972964,67956.0,67955.0,0.002924]
[1722050838706,2.05282443,67956.0,67955.0,0.002924]
[1722050839079,2.02972964,67956.0,67955.0,0.002924]
[1722050840644,2.02958366,67956.0,67955.0,0.002924]
[1722050841344,2.17088366,67956.0,67955.0,0.002924]
[1722050841864,2.57344232,67956.0,67955.0,0.002924]
[1722050842238,2.32344232,67956.0,67955.0,0.002924]
[1722050842402,2.19397879,67956.0,67955.0,0.002924]
[1722050842799,2.11866292,67956.0,67955.0,0.002924]
[1722050843001,2.05306292,67956.0,67955.0,0.002924]
[1722050843989,1.93337723,67956.0,67955.0,0.079024]
[1722050844314,2.05287169,67956.0,67955.0,0.079024]
[1722050844494,2.05287219,67956.0,67955.0,0.079024]
[1722050844701,2.05287219,67956.0,67955.0,0.002924]
[1722050844899,2.19417219,67956.0,67955.0,0.002924]
[1722050847527,2.17107706,67956.0,67955.0,0.002924]
[1722050847722,2.01854158,67956.0,67955.0,0.002924]
[1722050847952,2.09541619,67956.0,67955.0,0.002924]
[1722050848146,2.09531023,67956.0,67955.0,0.002924]
[1722050849315,2.09546047,67956.0,67955.0,0.002924]
[1722050849827,2.02986047,67956.0,67955.0,0.002924]
[1722050850484,2.05295535,67956.0,67955.0,0.002924]
[1722050850878,2.02986047,67956.0,67955.0,0.002924]
[1722050851083,2.02960865,67956.0,67955.0,0.002924]
[1722050852067,1.9102821,67956.0,67955.0,0.002924]
[1722050852280,2.02898718,67956.0,67955.0,0.002924]
[1722050852914,2.02898718,67956.0,67955.0,0.141124]
[1722050852915,1.72898718,67956.0,67955.0,0.141124]
[1722050853493,1.72898718,67956.0,67955.0,0.079024]
[1722050854357,1.75208186,67956.0,67955.0,0.079024]
[1722050855527,1.72898718,67956.0,67955.0,0.079024]
[1722050855910,1.79458718,67956.0,67955.0,0.002924]
[1722050856639,1.72898718,67956.0,67955.0,0.002924]
[1722050857969,1.6102821,67956.0,67955.0,0.002924]
[1722050858205,1.72896962,67956.0,67955.0,0.002924]
[1722050858582,1.72896962,67956.0,67955.0,0.081324]
[1722050859045,1.75206459,67956.0,67955.0,0.081324]
[1722050860015,1.75206459,67956.0,67955.0,0.002924]
[1722050860397,1.72896962,67956.0,67955.0,0.002924]
[1722050860618,1.94607837,67956.0,67955.0,0.002924]
[1722050861292,1.6102821,67956.0,67955.0,0.002924]
[1722050861498,1.94630956,67956.0,67955.0,0.002924]
[1722050862431,1.94630588,67956.0,67955.0,0.002924]
[1722050862774,1.72909899,67956.0,67955.0,0.002924]
[1722050863359,1.75219384,67956.0,67955.0,0.002924]
[1722050863812,1.96940039,67956.0,67955.0,0.002924]
[1722050864255,1.75219384,67956.0,67955.0,0.002924]
[1722050864461,1.72909899,67956.0,67955.0,0.143324]
[1722050864864,1.7288243,67956.0,67955.0,0.143324]
[1722050865507,1.7288243,67956.0,67955.0,0.002924]
[1722050867375,1.72860783,67956.0,67955.0,0.002924]
[1722050867939,1.81560251,67956.0,67955.0,0.002924]
[1722050868312,1.7927877,67956.0,67955.0,0.002924]
[1722050869852,1.6741821,67956.0,67955.0,0.002924]
[1722050870018,1.79279526,67956.0,67955.0,0.002924]
[1722050870230,1.94610931,67956.0,67955.0,0.002924]
[1722050870473,1.72889526,67956.0,67955.0,0.002924]
[1722050871221,1.94610931,67956.0,67955.0,0.002924]
[1722050871424,1.96920416,67956.0,67955.0,0.002924]
[1722050871625,1.63337695,67956.0,67955.0,0.002924]
[1722050871955,1.96922346,67956.0,67955.0,0.002924]
[1722050872098,1.86962861,67956.0,67955.0,0.002924]
[1722050872300,1.94612861,67956.0,67955.0,0.002924]
[1722050873971,1.72892116,67956.0,67955.0,0.002924]
[1722050875136,1.72900575,67956.0,67955.0,0.002924]
[1722050875320,1.7521006,67956.0,67955.0,0.002924]
[1722050875718,1.72900575,67956.0,67955.0,0.002924]
[1722050876376,1.72900575,67956.0,67955.0,0.081324]
[1722050876982,1.38469775,67956.0,67955.0,0.081324]
[1722050877131,1.28522096,67956.0,67955.0,0.143324]
[1722050877357,1.28265503,67956.0,67955.0,0.081324]
[1722050877563,1.36117821,67956.0,67955.0,0.081324]
[1722050878273,1.28522082,67956.0,67955.0,0.081324]
[1722050878475,1.26597396,67956.0,67955.0,0.081324]
[1722050878680,1.3078662,67956.0,67955.0,0.081324]
[1722050878881,1.40709896,67956.0,67955.0,0.081324]
[1722050879345,1.38400513,67956.0,67955.0,0.081324]
[1722050881144,1.38415375,67956.0,67955.0,0.081324]
[1722050882444,1.38415375,67956.0,67955.0,0.146024]
[1722050882796,1.40724758,67956.0,67955.0,0.146024]
[1722050883232,1.38415375,67956.0,67955.0,0.146024]
[1722050884434,1.26597396,67956.0,67955.0,0.146024]
[1722050884659,1.38404463,67956.0,67955.0,0.146024]
[1722050886196,1.30788291,67956.0,67955.0,0.146024]
[1722050886371,1.33097678,67956.0,67955.0,0.146024]
[1722050887369,1.30788291,67956.0,67955.0,0.146024]
[1722050887835,1.26597396,67956.0,67955.0,0.146024]
[1722050888046,1.30761312,67956.0,67955.0,0.146024]
[1722050889591,1.23111312,67956.0,67955.0,0.146024]
[1722050891308,1.18947396,67956.0,67955.0,0.146024]
[1722050891527,1.23107409,67956.0,67955.0,0.146024]
[1722050892197,0.93676609,67956.0,67955.0,0.146024]
[1722050892435,0.66830482,67956.0,67955.0,0.146024]
[1722050892866,0.51945809,67956.0,67955.0,0.146024]
[1722050892996,0.5168923,67956.0,67955.0,0.146024]
[1722050894703,0.47529217,67956.0,67955.0,0.146024]
[1722050894919,0.5165961,67956.0,67955.0,0.146024]
[1722050895148,0.53968936,67956.0,67955.0,0.146024]
[1722050895726,0.5165961,67956.0,67955.0,0.146024]
[1722050896373,0.53968939,67956.0,67955.0,0.146024]
[1722050898340,0.49838546,67956.0,67955.0,0.146024]
[1722050898484,0.53971779,67956.0,67955.0,0.146024]
[1722050900187,0.5166245,67956.0,67955.0,0.146024]
[1722050900365,0.50772381,67956.0,67955.0,0.146024]
[1722050900501,0.21341581,67956.0,67955.0,0.146024]
[1722050900712,0.50772381,67956.0,67955.0,0.146024]
[1722050901610,0.46539148,67956.0,67955.0,0.146024]
[1722050901838,0.50679039,67956.0,67955.0,0.146024]
[1722050902144,0.5067904,67956.0,67955.0,0.146024]
[1722050902688,0.5077904,67956.0,67955.0,0.146024]
[1722050902914,0.5077904,67956.0,67955.0,0.144024]
[1722050903220,0.52988374,67956.0,67955.0,0.151024]
[1722050903426,0.08842174,67956.0,67955.0,0.29918]
[1722050903633,0.08899647,67956.0,67955.0,0.937804]
[1722050903992,0.00084,67956.0,67955.0,0.887804]
[1722050904200,0.06695622,67956.0,67955.0,0.887804]
[1722050904425,0.00084,67956.0,67955.0,0.887804]
[1722050904631,0.00084,67956.0,67955.0,1.1766702]
[1722050904831,0.00084,67956.0,67955.0,1.238116]
[1722050905822,0.00084,67956.0,67955.0,1.252116]
[1722050906052,0.00084,67956.0,67955.0,1.238116]
[1722050906167,0.00084,67956.0,67955.0,1.240116]
[1722050906365,0.00084,67956.0,67955.0,1.65437557]
[1722050906572,0.00084,67956.0,67955.0,1.94868757]
[1722050906773,0.00084,67956.0,67955.0,2.07096525]
[1722050907028,0.023929,67956.0,67955.0,2.07096525]
[1722050907234,0.023929,67956.0,67955.0,2.05696525]
[1722050907626,0.023929,67956.0,67955.0,2.05696118]
[1722050908332,0.023929,67956.0,67955.0,1.93468757]
[1722050908465,0.023929,67956.0,67955.0,2.05696074]
[1722050908667,0.023929,67956.0,67955.0,2.04296074]
[1722050908915,0.023929,67956.0,67955.0,2.05696074]
[1722050909475,0.023929,67956.0,67955.0,1.93468757]
[1722050910096,0.023929,67956.0,67955.0,2.05696041]
[1722050910508,0.023929,67956.0,67955.0,2.07096041]
[1722050910886,0.023929,67956.0,67955.0,2.17096041]
[1722050911233,0.00084,67956.0,67955.0,2.17096041]
[1722050911642,0.00084,67956.0,67955.0,2.04868757]
[1722050911852,0.00084,67956.0,67955.0,2.17095463]
[1722050912976,9.00084,67981.0,67980.0,0.147102]
[1722050913198,9.00084,67981.0,67980.0,0.577206]
[1722050914726,9.02392428,67981.0,67980.0,0.1359]
[1722050914930,9.17102328,67981.0,67980.0,0.0757]
[1722050915749,9.147939,67981.0,67980.0,0.0757]
[1722050916385,9.442138,67981.0,67980.0,0.0757]
[1722050917566,9.147939,67981.0,67980.0,0.0757]
[1722050918105,0.147106,67978.0,67977.0,0.0602]
[1722050918311,0.147106,67978.0,67977.0,0.083]
[1722050918912,0.441318,67978.0,67977.0,0.083]
[1722050920102,0.441318,67978.0,67977.0,0.085]
[1722050921983,0.17019115,67978.0,67977.0,0.085]
[1722050922586,0.02308515,67978.0,67977.0,0.085]
[1722050922974,0.17019115,67978.0,67977.0,0.085]
[1722050923595,0.147106,67978.0,67977.0,0.085]
[1722050924254,0.441318,67978.0,67977.0,0.085]
[1722050926893,0.46440316,67978.0,67977.0,0.085]
[1722050927336,0.441318,67978.0,67977.0,0.085]
[1722050929449,0.147106,67978.0,67977.0,0.085]
[1722050930642,0.17019123,67978.0,67977.0,0.085]
[1722050930859,0.147106,67978.0,67977.0,0.085]
[1722050931058,0.147946,67978.0,67977.0,0.085]
[1722050934364,0.17103119,67978.0,67977.0,0.085]
[1722050934578,0.17103119,67978.0,67977.0,0.086]
[1722050934830,0.17103119,67978.0,67977.0,0.094]
[1722050935533,0.147946,67978.0,67977.0,0.094]
[1722050936849,0.442158,67978.0,67977.0,0.094]
[1722050937274,0.442158,67978.0,67977.0,0.011]
[1722050937275,0.73637,67978.0,67977.0,0.011]
[1722050937496,1.6066528,67978.0,67977.0,0.011]
[1722050937700,1.3124408,67978.0,67977.0,0.011]
[1722050938396,1.35634362,67978.0,67977.0,0.011]
[1722050938622,1.37943048,67978.0,67977.0,0.011]
[1722050938844,1.75620467,67978.0,67977.0,0.011]
[1722050939075,2.00620467,67978.0,67977.0,0.011]
[1722050939296,2.09403166,67978.0,67977.0,0.011]
[1722050939567,2.00620467,67978.0,67977.0,0.011]
[1722050939785,2.00620467,67978.0,67977.0,0.003]
[1722050940008,0.147152,67957.0,67955.0,0.081024]
[1722050940460,0.14715,67958.0,67955.0,0.081024]
[1722050940686,0.294298,67959.0,67955.0,0.081024]
[1722050940938,0.14715,67958.0,67955.0,0.081024]
[1722050941376,0.14715,67958.0,67955.0,0.095024]
[1722050941791,0.17024103,67958.0,67955.0,0.081024]
[1722050942339,0.294291,67960.0,67955.0,0.081024]
[1722050942542,0.375662,67967.0,67955.0,0.081024]
[1722050942543,0.354362,67967.0,67955.0,0.081024]
[1722050942821,0.14715,67958.0,67955.0,0.081024]
[1722050943148,0.147145,67960.0,67955.0,0.242179]
[1722050943370,0.147145,67960.0,67956.0,0.147153]
[1722050943577,0.147147,67959.0,67956.0,0.0801]
[1722050943791,0.147144,67961.0,67958.0,0.0801]
[1722050944422,0.294272,67965.0,67959.0,0.0607]
[1722050944652,0.147139,67963.0,67960.0,0.0801]
[1722050944873,0.147137,67964.0,67960.0,0.227244]
[1722050945456,0.17022678,67964.0,67960.0,0.227244]
[1722050946146,0.02308978,67964.0,67961.0,0.287942]
[1722050946507,0.02308978,67964.0,67961.0,0.1408]
[1722050946508,0.17022678,67964.0,67961.0,0.1408]
[1722050946718,0.147137,67964.0,67961.0,0.1408]
[1722050947447,0.19109821,67964.0,67961.0,0.1408]
[1722050947652,0.147137,67964.0,67961.0,0.1468]
[1722050947843,0.147137,67964.0,67961.0,0.1588]
[1722050948044,0.19113568,67964.0,67961.0,0.1588]
[1722050948380,0.04399868,67962.0,67961.0,0.1588]
[1722050949041,0.04401375,67962.0,67961.0,0.305942]
[1722050949244,0.06602063,67963.0,67961.0,0.305942]